bitfinex/quotes_SOLUSD_20250705
["timestamp","ask_amount","ask_price","bid_price","bid_amount"]
[1751709778227,5.049944,148.09,148.05,12.73270464]
[1751709778427,5.97822981,148.1,148.05,12.73270464]
[1751709778627,5.05028917,148.09,148.05,12.73270464]
[1751709778849,5.97822981,148.1,148.05,12.73270464]
[1751709779028,11.02852066,148.09,148.05,12.73270464]
[1751709779228,5.97822981,148.09,148.05,12.73270464]
[1751709782857,5.97822981,148.09,148.05,6.75447483]
[1751709783366,5.0522756,148.08,148.05,6.75447483]
[1751709783549,5.97822981,148.09,148.05,6.75447483]
[1751709783751,5.05252618,148.08,148.05,6.75447483]
[1751709783962,3.82580789,148.09,148.05,6.75447483]
[1751709784138,5.05252618,148.08,148.05,6.75447483]
[1751709784344,3.82580789,148.09,148.05,6.75447483]
[1751709784544,5.05321564,148.08,148.05,6.75447483]
[1751709784844,3.82580789,148.09,148.05,10.58028272]
[1751709785052,5.05321396,148.08,148.05,10.58028272]
[1751709785254,3.82580789,148.09,148.05,10.58028272]
[1751709785453,5.05374166,148.08,148.05,10.58028272]
[1751709785659,3.82580789,148.09,148.05,10.58028272]
[1751709785870,5.05408573,148.08,148.05,10.58028272]
[1751709786045,3.82580789,148.09,148.05,10.58028272]
[1751709786245,5.05408405,148.08,148.05,10.58028272]
[1751709786459,3.82580789,148.09,148.05,10.58028272]
[1751709786759,5.05491015,148.08,148.05,10.58028272]
[1751709786949,3.82580789,148.09,148.05,6.75447483]
[1751709787151,5.05491015,148.08,148.05,6.75447483]
[1751709787357,3.82580789,148.09,148.05,6.75447483]
[1751709787561,5.05582461,148.08,148.05,6.75447483]
[1751709787861,3.82580789,148.09,148.05,6.75447483]
[1751709788074,8.8816325,148.08,148.05,6.75447483]
[1751709788239,5.05582461,148.07,148.05,6.75447483]
[1751709788440,3.82580789,148.08,148.05,6.75447483]
[1751709788652,5.05695829,148.07,148.05,6.75447483]
[1751709788862,3.82580789,148.09,148.05,6.75447483]
[1751709789164,5.05685358,148.08,148.05,6.75447483]
[1751709789466,5.05791181,148.07,148.05,6.75447483]
[1751709789659,3.82580789,148.09,148.05,6.75447483]
[1751709789959,5.05808658,148.08,148.05,6.75447483]
[1751709790149,5.05808658,148.07,148.05,6.75447483]
[1751709790466,3.82580789,148.09,148.05,6.75447483]
[1751709790666,5.05887984,148.08,148.05,6.75447483]
[1751709790870,5.05887984,148.07,148.05,6.75447483]
[1751709791071,3.82580789,148.09,148.05,6.75447483]
[1751709791265,5.0588832,148.08,148.05,6.75447483]
[1751709791465,5.0588832,148.07,148.05,6.75447483]
[1751709791668,3.82580789,148.09,148.05,6.75447483]
[1751709791972,5.05979539,148.08,148.05,6.75447483]
[1751709792148,5.05979539,148.07,148.05,6.75447483]
[1751709792348,3.82580789,148.09,148.05,6.75447483]
[1751709792549,5.06087597,148.08,148.05,6.75447483]
[1751709792771,5.06087597,148.07,148.05,6.75447483]
[1751709793046,3.82580789,148.09,148.05,6.75447483]
[1751709793272,5.06087597,148.08,148.05,6.75447483]
[1751709793461,5.06087597,148.07,148.05,6.75447483]
[1751709793772,3.82580789,148.09,148.05,6.75447483]
[1751709793958,5.06261173,148.08,148.05,6.75447483]
[1751709794278,5.06261173,148.07,148.05,6.75447483]
[1751709794483,5.06495884,148.06,148.05,6.75447483]
[1751709797382,5.06495884,148.06,148.04,6.75472648]
[1751709797583,3.82580789,148.07,148.04,6.75472648]
[1751709797781,5.06534477,148.06,148.04,6.75472648]
[1751709797967,3.82580789,148.07,148.05,0.03]
[1751709798158,5.06534309,148.06,148.05,0.03]
[1751709798354,8.89115098,148.06,148.05,0.03]
[1751709801180,5.20750466,148.06,148.05,0.03]
[1751709801382,5.06534309,148.06,148.05,0.03]
[1751709815370,5.06534309,148.06,148.05,3.85580789]
[1751709815575,15.84819765,148.1,148.05,3.85580789]
[1751709815774,8.88535072,148.09,148.05,3.85580789]
[1751709815990,5.05954283,148.08,148.05,3.85580789]
[1751709816169,5.05954283,148.07,148.05,3.85580789]
[1751709816370,3.82580789,148.09,148.05,3.85580789]
[1751709816587,5.05979856,148.08,148.05,3.85580789]
[1751709816791,5.05979856,148.07,148.05,3.85580789]
[1751709817098,3.82580789,148.09,148.05,3.85580789]
[1751709817297,5.0597617,148.08,148.06,6.75401864]
[1751709817483,5.0597617,148.07,148.06,6.75401864]
[1751709818689,5.0597617,148.07,148.05,0.03]
[1751709818889,5.0597617,148.06,148.05,0.03]
[1751709822410,5.0597617,148.06,148.05,6.78447483]
[1751709823094,5.0597617,148.06,148.05,10.61028272]
[1751709823293,5.7,148.1,148.05,10.61028272]
[1751709823485,5.06055558,148.09,148.07,3.82580789]
[1751709823807,5.7,148.1,148.07,3.82580789]
[1751709823808,5.06055558,148.08,148.07,3.82580789]
[1751709824192,5.06055558,148.08,148.07,10.57937039]
[1751709825007,5.06055558,148.08,148.07,6.7535625]
[1751709845923,5.06055558,148.08,148.07,3.82580789]
[1751709846127,5.7,148.12,148.07,29.82580789]
[1751709846311,5.05640633,148.11,148.09,3.82580789]
[1751709846512,5.05640633,148.1,148.07,26.0]
[1751709846710,5.05610663,148.12,148.1,26.0]
[1751709846929,15.90819765,148.16,148.11,3.82580789]
[1751709847110,5.05579968,148.15,148.11,3.82580789]
[1751709847423,5.05579968,148.14,148.11,3.82580789]
[1751709847607,5.05579968,148.13,148.12,3.82580789]
[1751709848019,5.05579968,148.13,148.12,10.57709063]
[1751709848934,9.58580789,148.16,148.12,27.45529748]
[1751709848935,5.76,148.16,148.12,27.45529748]
[1751709849236,5.05100022,148.15,148.14,3.82580789]
[1751709849404,0.06,148.16,148.15,26.0]
[1751709849610,0.06,148.16,148.15,29.82580789]
[1751709850038,0.06,148.16,148.15,36.57572351]
[1751709851334,0.06,148.16,148.15,32.74991562]
[1751709851720,0.06,148.16,148.15,6.74991562]
[1751709852116,0.06,148.16,148.14,6.75037127]
[1751709853524,0.06,148.16,148.14,12.72135038]
[1751709857937,6.03097911,148.16,148.14,6.75037127]
[1751709859639,6.03097911,148.16,148.12,31.97097911]
[1751709859640,6.03097911,148.16,148.13,6.75082697]
[1751709859939,0.06,148.16,148.13,6.75082697]
[1751709860130,0.06,148.16,148.13,12.72180608]
[1751709867963,0.06,148.16,148.13,12.75180608]
[1751709868898,6.03097911,148.16,148.13,0.03]
[1751709869069,5.97097911,148.15,148.13,0.03]
[1751709871787,5.08998708,148.16,148.13,0.03]
[1751709872094,5.97097911,148.15,148.13,0.03]
[1751709872297,5.97097911,148.14,148.13,0.03]
[1751709873772,11.00096619,148.14,148.13,0.03]
[1751709874899,36.54314789,148.14,148.13,0.03]
[1751709876579,44.60404789,148.14,148.13,0.03]
[1751709892807,38.12494789,148.14,148.13,0.03]
[1751709895900,35.97921317,148.14,148.13,0.03]
[1751709902005,42.28836262,148.14,148.13,0.03]
[1751709903111,40.70656262,148.14,148.13,0.03]
[1751709903734,36.88131823,148.14,148.13,0.03]
[1751709903940,34.39741317,148.14,148.13,0.03]
[1751709907135,40.70656262,148.14,148.13,0.03]
[1751709913344,34.39741317,148.14,148.13,0.03]
[1751709914349,3.82524439,148.11,148.07,12.96894984]
[1751709914651,5.02998708,148.1,148.07,12.96894984]
[1751709914826,5.02998708,148.09,148.07,12.96894984]
[1751709915036,3.82524439,148.11,148.07,12.96894984]
[1751709915242,5.05891881,148.1,148.07,12.96894984]
[1751709915545,5.05891881,148.09,148.07,12.96894984]
[1751709915754,3.82524439,148.11,148.07,12.96894984]
[1751709915931,5.05905317,148.1,148.07,12.96894984]
[1751709916134,5.05905317,148.09,148.07,12.96894984]
[1751709916445,5.05905317,148.08,148.07,12.96894984]
[1751709922441,5.06754189,148.08,148.07,12.96894984]
[1751709927154,5.06754189,148.08,148.07,16.79419423]
[1751709931770,6.39442736,148.13,148.1,26.0]
[1751709931931,0.06,148.13,148.11,3.82524439]
[1751709933064,0.06,148.13,148.12,3.82524439]
[1751709934268,0.06,148.13,148.12,10.57652713]
[1751709938863,0.06,148.13,148.12,6.75128274]
[1751709944155,0.06,148.13,148.12,10.57652713]
[1751709945053,0.06,148.13,148.11,10.57698296]
[1751709959191,0.06,148.13,148.12,3.82524439]
[1751709959369,0.06,148.13,148.12,10.36054439]
[1751709959573,0.06,148.13,148.12,36.36054439]
[1751709959965,1e-08,148.13,148.12,10.36054439]
[1751709963350,1e-08,148.13,148.12,13.28658274]
[1751709963600,1e-08,148.13,148.12,17.11182713]
[1751709965876,3.8252444,148.13,148.1,6.75219446]
[1751709966091,3.82524439,148.12,148.1,6.75219446]
[1751709967007,3.8252444,148.13,148.11,26.0]
[1751709967170,1e-08,148.13,148.12,6.75128274]
[1751709967377,1e-08,148.13,148.12,10.57652713]
[1751709967580,1e-08,148.13,148.12,36.57652713]
[1751709976817,1e-08,148.13,148.12,10.57652713]
[1751709977211,1e-08,148.13,148.12,44.69652713]
[1751709986417,1e-08,148.13,148.12,44.72652713]
[1751710021119,1e-08,148.13,148.12,63.37617599]
[1751710024506,1e-08,148.16,148.15,26.0]
[1751710024720,1e-08,148.16,148.15,63.92524439]
[1751710025322,1e-08,148.18,148.15,82.57489325]
[1751710025523,1e-08,148.19,148.17,5.38344439]
[1751710025822,1e-08,148.19,148.18,37.92524439]
[1751710026006,1e-08,148.19,148.18,44.67379345]
[1751710026207,1e-08,148.2,148.18,63.32344231]
[1751710026417,0.2,148.22,148.18,63.32344231]
[1751710026418,0.2,148.22,148.2,26.0]
[1751710026619,0.2,148.22,148.21,3.82524439]
[1751710026811,5.2544372,148.22,148.21,3.82524439]
[1751710027128,0.2,148.22,148.21,3.82524439]
[1751710027608,0.2,148.22,148.21,10.57242744]
[1751710029805,1e-08,148.22,148.21,10.57242744]
[1751710030333,1e-08,148.23,148.21,29.2220763]
[1751710030501,1e-08,148.23,148.22,37.92524439]
[1751710031132,1e-08,148.23,148.22,44.67197222]
[1751710033026,1e-08,148.23,148.22,70.67197222]
[1751710033611,1e-08,148.23,148.22,66.84672783]
[1751710033810,1e-08,148.23,148.22,32.74672783]
[1751710034027,1e-08,148.23,148.22,36.57197222]
[1751710034342,1e-08,148.23,148.22,32.74672783]
[1751710036043,1e-08,148.23,148.22,36.57197222]
[1751710036917,1.5173,148.25,148.19,34.08]
[1751710037143,3.82524439,148.23,148.19,3.82524439]
[1751710037627,3.82524439,148.23,148.19,29.82524439]
[1751710038037,3.82524439,148.23,148.2,6.74763832]
[1751710039429,5.03709002,148.24,148.17,3.82524439]
[1751710039430,3.82524439,148.22,148.17,3.82524439]
[1751710039636,3.82524439,148.21,148.17,3.82524439]
[1751710039838,11.78296646,148.24,148.17,29.82524439]
[1751710040031,3.82524439,148.19,148.16,6.98]
[1751710040347,3.82524439,148.17,148.15,6.74991562]
[1751710041149,3.82524439,148.18,148.15,6.74991562]
[1751710041739,5.97074252,148.18,148.15,6.74991562]
[1751710046938,6.54773026,148.19,148.15,6.74991562]
[1751710047133,5.97074252,148.18,148.15,6.74991562]
[1751710048134,5.97074252,148.18,148.14,32.75035956]
[1751710048445,5.97074252,148.17,148.14,32.75035956]
[1751710055065,5.97074252,148.15,148.13,0.03]
[1751710055353,5.97074252,148.14,148.13,0.03]
[1751710061767,24.76255295,148.14,148.13,0.03]
[1751710063142,31.51292422,148.14,148.13,0.03]
[1751710065648,37.21292422,148.14,148.13,0.03]
[1751710066168,30.46255295,148.14,148.13,0.03]
[1751710066865,37.21292422,148.14,148.13,0.03]
[1751710068985,30.46255295,148.14,148.13,0.03]
[1751710069773,28.31634242,148.14,148.13,0.03]
[1751710073458,26.81634242,148.14,148.13,0.03]
[1751710074485,33.56671369,148.14,148.13,0.03]
[1751710075480,33.70887526,148.14,148.13,0.03]
[1751710076092,38.72431905,148.14,148.13,0.03]
[1751710076592,38.7259721,148.14,148.13,0.03]
[1751710078380,10.85925841,148.14,148.13,0.03]
[1751710078596,9.66669356,148.14,148.13,0.03]
[1751710079091,14.68870028,148.14,148.13,0.03]
[1751710084662,10.72200672,148.14,148.13,0.03]
[1751710084899,14.54653871,148.14,148.13,0.03]
[1751710085697,10.72200672,148.14,148.13,0.03]
[1751710086061,14.60653871,148.14,148.13,0.03]
[1751710089386,8.90653871,148.14,148.13,0.03]
[1751710096091,8.93942983,148.14,148.13,0.03]
[1751710096483,9.0815914,148.14,148.13,0.03]
[1751710096683,18.79181043,148.13,148.12,0.03]
[1751710096873,33.9923829,148.13,148.12,0.03]
[1751710097410,34.42206723,148.13,148.12,0.03]
[1751710101005,40.12206723,148.13,148.07,32.31335935]
[1751710101187,3.82453199,148.1,148.07,32.31335935]
[1751710101389,5.05489784,148.09,148.07,32.31335935]
[1751710101590,5.05489784,148.08,148.07,32.31335935]
[1751710101904,3.82453199,148.1,148.07,32.31335935]
[1751710102099,5.06186744,148.09,148.07,32.31335935]
[1751710102400,3.82453199,148.1,148.07,32.31335935]
[1751710102604,5.06175654,148.09,148.07,32.31335935]
[1751710102779,3.82453199,148.1,148.07,32.31335935]
[1751710102979,5.06175822,148.09,148.07,31.81335935]
[1751710103181,3.82453199,148.11,148.07,31.81335935]
[1751710103381,5.06184033,148.1,148.07,31.81335935]
[1751710103595,5.06184033,148.09,148.07,31.81335935]
[1751710103798,5.06184033,148.08,148.07,31.81335935]
[1751710106202,8.88637232,148.08,148.06,0.03]
[1751710106380,5.06184033,148.07,148.06,6.78401864]
[1751710107496,5.06184033,148.07,148.06,0.03]
[1751710107695,5.06184033,148.07,148.06,6.78401864]
[1751710107902,8.88637232,148.07,148.06,0.03]
[1751710111419,5.06184033,148.07,148.06,0.03]
[1751710112422,8.88637232,148.07,148.06,0.03]
[1751710113832,11.041846,148.07,148.06,0.03]
[1751710119322,11.101846,148.07,148.06,0.03]
[1751710120946,36.64721893,148.07,148.06,0.03]
[1751710129013,18.79181043,148.06,148.05,0.03]
[1751710129215,62.1335603,148.06,148.05,0.03]
[1751710129416,55.83365643,148.06,148.05,0.03]
[1751710131136,62.58767507,148.06,148.05,0.03]
[1751710131526,68.88757894,148.06,148.05,0.03]
[1751710132440,68.85963107,148.06,148.05,0.03]
[1751710132817,62.56307755,148.06,148.05,0.03]
[1751710134223,68.85963107,148.06,148.05,0.03]
[1751710135349,44.64964886,148.04,148.03,0.03]
[1751710135555,55.66689734,148.04,148.03,0.03]
[1751710136339,62.42182843,148.04,148.03,0.03]
[1751710142857,67.84104266,148.04,148.03,0.03]
[1751710144156,67.84065308,148.04,148.03,0.03]
[1751710146668,67.98281465,148.04,148.03,0.03]
[1751710146963,74.96281465,148.04,148.03,0.03]
[1751710147354,18.79181043,148.03,147.99,0.1]
[1751710147564,24.62965453,148.0,147.99,0.1]
[1751710147750,27.66109602,148.0,147.99,0.1]
[1751710147939,23.82866366,148.0,147.99,0.1]
[1751710148143,27.66109602,148.0,147.99,0.1]
[1751710149253,34.41785277,148.0,147.99,0.1]
[1751710149564,5.03912046,148.0,147.99,0.1]
[1751710149767,16.72305398,148.02,147.99,0.1]
[1751710149965,5.03912046,148.01,147.99,0.1]
[1751710151650,5.03912046,148.02,147.99,12.8410758]
[1751710151849,5.03912046,148.02,148.0,1.6085]
[1751710152054,12.01962725,148.04,148.0,7.59243352]
[1751710152285,18.00356077,148.04,148.0,7.59243352]
[1751710152486,6.98,148.04,148.03,5.98393352]
[1751710152786,0.06,148.05,148.01,12.22773352]
[1751710152946,5.10018527,148.05,148.01,12.22773352]
[1751710153142,0.06,148.05,148.01,12.22773352]
[1751710153346,5.10018527,148.05,148.01,12.22773352]
[1751710154058,5.10018527,148.05,148.01,18.98370827]
[1751710154059,11.08411879,148.05,148.01,18.98370827]
[1751710154361,5.04018527,148.04,148.01,18.98370827]
[1751710155771,5.04018527,148.04,148.01,12.99977475]
[1751710156774,5.04018527,148.03,148.01,12.99977475]
[1751710156986,5.04018527,148.04,148.01,18.98370827]
[1751710157286,5.04018527,148.03,148.01,18.98370827]
[1751710157448,5.04018527,148.04,148.01,18.98370827]
[1751710157651,5.04018527,148.03,148.01,18.98370827]
[1751710157849,5.04018527,148.04,148.01,18.98370827]
[1751710158042,6.04393352,148.05,148.01,18.98370827]
[1751710158251,5.04568148,148.04,148.01,18.98370827]
[1751710158453,5.04677024,148.03,148.01,18.98370827]
[1751710158675,5.04677024,148.04,148.01,18.98370827]
[1751710158876,5.04677024,148.03,148.01,18.98370827]
[1751710159061,5.04677024,148.04,148.01,18.98370827]
[1751710159268,5.04677024,148.03,148.01,18.98370827]
[1751710159477,5.04677024,148.04,148.01,18.98370827]
[1751710159686,5.04677024,148.03,148.01,18.98370827]
[1751710159886,5.04677024,148.04,148.01,18.98370827]
[1751710160048,5.04677024,148.03,148.01,18.98370827]
[1751710160250,5.04677024,148.04,148.01,18.98370827]
[1751710160481,0.06,148.05,148.01,18.98370827]
[1751710160671,5.04858012,148.04,148.01,18.98370827]
[1751710160858,5.04858012,148.03,148.01,18.98370827]
[1751710161159,5.04858012,148.04,148.01,18.98370827]
[1751710161361,5.04858012,148.03,148.01,18.98370827]
[1751710161568,5.04858012,148.04,148.01,18.98370827]
[1751710161770,5.04858012,148.03,148.01,18.98370827]
[1751710161969,5.04858012,148.04,148.01,18.98370827]
[1751710162181,5.04858012,148.03,148.01,18.98370827]
[1751710162363,5.04858012,148.04,148.01,18.98370827]
[1751710162567,5.05033713,148.03,148.01,18.98370827]
[1751710162780,0.06,148.05,148.01,18.98370827]
[1751710162979,5.05033546,148.04,148.02,5.98393352]
[1751710163285,0.06,148.05,148.03,5.98393352]
[1751710164059,0.06,148.05,148.04,6.75493109]
[1751710164260,5.11052768,148.05,148.04,6.75493109]
[1751710164560,5.11052768,148.05,148.04,12.73886461]
[1751710165668,5.11052768,148.05,148.03,5.98393352]
[1751710165992,0.06,148.05,148.03,5.98393352]
[1751710167199,0.06,148.05,148.04,7.54943352]
[1751710167362,5.11060621,148.05,148.04,7.54943352]
[1751710167566,0.06,148.05,148.04,7.54943352]
[1751710167764,5.11060621,148.05,148.04,14.30436461]
[1751710167997,0.06,148.05,148.04,14.30436461]
[1751710168161,5.11060621,148.05,148.04,14.30436461]
[1751710168362,0.06,148.05,148.04,14.30436461]
[1751710168581,0.06,148.05,148.04,8.32043109]
[1751710170571,1e-08,148.05,148.04,14.30436461]
[1751710170790,1e-08,148.05,148.04,20.53076461]
[1751710170983,1e-08,148.05,148.04,20.67292618]
[1751710171182,0.06,148.07,148.06,26.0]
[1751710171387,1e-08,148.07,148.06,31.98393352]
[1751710172685,1e-08,148.07,148.06,38.73795216]
[1751710186308,1e-08,148.07,148.06,63.51369611]
[1751710191403,1e-08,148.07,148.06,6.75401864]
[1751710191789,1e-08,148.07,148.06,12.73795216]
[1751710192106,1e-08,148.07,148.06,38.73795216]
[1751710202899,1e-08,148.07,148.06,38.76795216]
[1751710203214,0.06,148.14,148.09,26.0]
[1751710203417,0.06,148.14,148.13,5.98393352]
[1751710205206,0.06,148.14,148.13,12.73476049]
[1751710212709,0.06,148.14,148.13,6.75082697]
[1751710213347,6.04393352,148.14,148.1,6.75219446]
[1751710213648,5.03989064,148.13,148.1,6.75219446]
[1751710213812,5.03989064,148.13,148.1,32.75219446]
[1751710214016,5.03989064,148.13,148.1,6.75219446]
[1751710214413,0.06,148.14,148.12,31.98393352]
[1751710214629,0.06,148.14,148.13,5.98393352]
[1751710215341,0.06,148.14,148.13,12.73476049]
[1751710221536,0.06,148.14,148.13,6.75082697]
[1751710223546,5.10214096,148.14,148.13,6.75082697]
[1751710223745,0.06,148.14,148.13,6.75082697]
[1751710224052,5.10214096,148.14,148.13,6.75082697]
[1751710224561,0.06,148.14,148.13,6.75082697]
[1751710225738,5.10275428,148.14,148.13,6.75082697]
[1751710226059,0.06,148.14,148.13,6.75082697]
[1751710226268,5.10275428,148.14,148.13,6.75082697]
[1751710226442,0.06,148.14,148.13,6.75082697]
[1751710226642,5.10275428,148.14,148.13,6.75082697]
[1751710226954,0.06,148.14,148.13,6.75082697]
[1751710227271,5.10275428,148.14,148.13,6.75082697]
[1751710227462,0.06,148.14,148.13,6.75082697]
[1751710227639,5.10275428,148.14,148.13,6.75082697]
[1751710227835,0.06,148.14,148.13,6.75082697]
[1751710228040,5.10275428,148.14,148.13,6.75082697]
[1751710228240,0.06,148.14,148.13,6.75082697]
[1751710228463,5.10275428,148.14,148.13,6.75082697]
[1751710228757,0.06,148.14,148.13,6.75082697]
[1751710228960,5.10275428,148.14,148.13,6.75082697]
[1751710229136,0.06,148.14,148.13,6.75082697]
[1751710229463,5.10275428,148.14,148.13,6.75082697]
[1751710229646,0.06,148.14,148.13,6.75082697]
[1751710229851,5.10275428,148.14,148.13,6.75082697]
[1751710230054,0.06,148.14,148.13,6.75082697]
[1751710230258,5.10275428,148.14,148.13,6.75082697]
[1751710230458,0.06,148.14,148.11,5.98393352]
[1751710230665,5.04275428,148.13,148.09,5.98393352]
[1751710230842,5.04492777,148.12,148.09,6.75265041]
[1751710231173,11.02886129,148.12,148.09,6.75265041]
[1751710231466,5.98393352,148.12,148.09,6.75265041]
[1751710231770,11.02886129,148.12,148.09,6.75265041]
[1751710231972,5.98393352,148.12,148.09,6.75265041]
[1751710232159,11.02886129,148.12,148.09,6.75265041]
[1751710232364,5.98393352,148.12,148.09,6.75265041]
[1751710232560,11.02886129,148.12,148.09,6.75265041]
[1751710232866,5.98393352,148.12,148.09,6.75265041]
[1751710233071,11.02886129,148.12,148.09,6.75265041]
[1751710233368,5.98393352,148.12,148.09,6.75265041]
[1751710233547,11.02886129,148.12,148.09,6.75265041]
[1751710233751,5.98393352,148.12,148.09,6.75265041]
[1751710234066,5.98393352,148.1,148.08,32.75295367]
[1751710235473,11.02896462,148.11,148.08,32.75295367]
[1751710235665,5.98393352,148.11,148.08,32.75295367]
[1751710236866,11.02871063,148.11,148.08,32.75295367]
[1751710237172,5.98393352,148.11,148.08,32.75295367]
[1751710237373,11.02871063,148.11,148.08,32.75295367]
[1751710237554,5.98393352,148.11,148.08,32.75295367]
[1751710237755,11.02871063,148.11,148.08,32.75295367]
[1751710237963,5.98393352,148.11,148.08,32.75295367]
[1751710238168,11.02871063,148.11,148.08,32.75295367]
[1751710238475,5.98393352,148.11,148.08,32.75295367]
[1751710240774,5.98393352,148.12,148.08,38.73688719]
[1751710240966,5.04595502,148.11,148.08,38.73688719]
[1751710241265,5.98393352,148.12,148.08,38.73688719]
[1751710241470,5.04626078,148.11,148.08,38.73688719]
[1751710241667,5.98393352,148.12,148.08,38.73688719]
[1751710241870,5.04626078,148.11,148.08,38.73688719]
[1751710242052,5.98393352,148.12,148.08,38.73688719]
[1751710242252,5.04626078,148.11,148.08,38.73688719]
[1751710242458,5.98393352,148.12,148.08,38.73688719]
[1751710242660,5.04657469,148.11,148.08,38.73688719]
[1751710242878,5.98393352,148.12,148.08,38.73688719]
[1751710243058,5.04657469,148.11,148.08,38.73688719]
[1751710243259,5.98393352,148.12,148.08,38.73688719]
[1751710243465,5.04640786,148.11,148.08,38.73688719]
[1751710243665,5.98393352,148.12,148.08,38.73688719]
[1751710243965,5.04689243,148.11,148.08,38.73688719]
[1751710244164,5.98393352,148.12,148.08,38.73688719]
[1751710244461,5.04670842,148.11,148.08,38.73688719]
[1751710244668,5.98393352,148.12,148.08,38.73688719]
[1751710244869,5.04721651,148.11,148.08,38.73688719]
[1751710245084,5.98393352,148.12,148.08,38.73688719]
[1751710245382,5.04721651,148.11,148.08,38.73688719]
[1751710245569,5.98393352,148.12,148.08,38.73688719]
[1751710245865,5.04701988,148.11,148.08,38.73688719]
[1751710246062,5.98393352,148.12,148.08,55.61965326]
[1751710246279,5.04701821,148.11,148.08,55.61965326]
[1751710246482,5.98393352,148.12,148.08,55.61965326]
[1751710246781,5.04717825,148.11,148.08,55.61965326]
[1751710246965,5.98393352,148.12,148.08,55.61965326]
[1751710247267,5.04717657,148.11,148.08,55.61965326]
[1751710247459,5.98393352,148.12,148.08,55.61965326]
[1751710247759,5.0470541,148.11,148.08,55.61965326]
[1751710247963,5.98393352,148.12,148.08,55.61965326]
[1751710248181,5.04705174,148.11,148.08,55.61965326]
[1751710248361,5.98393352,148.12,148.08,55.61965326]
[1751710248560,5.04662465,148.11,148.08,49.63571974]
[1751710248783,5.98393352,148.11,148.08,49.63571974]
[1751710249989,5.7,148.13,148.08,49.63571974]
[1751710249990,5.98393352,148.12,148.08,49.63571974]
[1751710250161,5.04668324,148.11,148.08,49.63571974]
[1751710250361,5.98393352,148.12,148.08,49.63571974]
[1751710250562,5.04681861,148.11,148.08,49.63571974]
[1751710250762,5.98393352,148.12,148.08,49.63571974]
[1751710250971,5.04681861,148.11,148.08,49.63571974]
[1751710251162,5.98393352,148.12,148.08,49.63571974]
[1751710251378,5.04703287,148.11,148.08,49.63571974]
[1751710251571,5.98393352,148.12,148.08,49.63571974]
[1751710251768,5.04703287,148.11,148.08,49.63571974]
[1751710251969,6.04393352,148.12,148.08,49.63571974]
[1751710252271,5.04703454,148.11,148.08,49.63571974]
[1751710252478,5.04703454,148.1,148.08,49.63571974]
[1751710252676,5.04703454,148.11,148.08,49.63571974]
[1751710252876,5.04703454,148.1,148.08,49.63571974]
[1751710253078,5.04703454,148.11,148.08,49.63571974]
[1751710253383,5.04703454,148.1,148.08,49.63571974]
[1751710253557,5.04703454,148.11,148.08,49.63571974]
[1751710253759,5.04703454,148.1,148.08,49.63571974]
[1751710253959,5.04703454,148.11,148.08,49.63571974]
[1751710254183,5.04703454,148.1,148.08,49.63571974]
[1751710254376,5.04703454,148.11,148.08,49.63571974]
[1751710254578,5.04703454,148.1,148.08,49.63571974]
[1751710254787,5.04703454,148.11,148.08,49.63571974]
[1751710254989,5.04703454,148.1,148.08,49.63571974]
[1751710255186,5.04703454,148.11,148.08,49.63571974]
[1751710255391,5.04703454,148.1,148.08,49.63571974]
[1751710255583,5.04703454,148.11,148.08,49.63571974]
[1751710255889,5.04703454,148.1,148.08,49.63571974]
[1751710256089,5.04703454,148.11,148.08,49.63571974]
[1751710256290,6.04393352,148.12,148.08,49.63571974]
[1751710256291,5.04703454,148.1,148.08,49.63571974]
[1751710256471,5.04703454,148.11,148.08,49.63571974]
[1751710256670,5.04703454,148.1,148.08,49.63571974]
[1751710256888,5.04703454,148.11,148.08,49.63571974]
[1751710257089,5.04703454,148.1,148.08,49.63571974]
[1751710257293,5.04703454,148.11,148.08,49.63571974]
[1751710257477,5.04703454,148.1,148.08,49.63571974]
[1751710257667,5.04703454,148.11,148.08,49.63571974]
[1751710257966,5.04703454,148.1,148.08,49.63571974]
[1751710258167,5.04703454,148.11,148.08,49.63571974]
[1751710258369,5.04703454,148.1,148.08,49.63571974]
[1751710258591,5.04703454,148.11,148.08,49.63571974]
[1751710258889,6.04393352,148.12,148.08,49.63571974]
[1751710259077,5.04889895,148.11,148.08,49.63571974]
[1751710259276,6.04393352,148.12,148.08,49.63571974]
[1751710259479,5.04887173,148.11,148.08,49.63571974]
[1751710259682,6.04393352,148.12,148.08,49.63571974]
[1751710259883,5.04887173,148.11,148.08,49.63571974]
[1751710260083,6.04393352,148.12,148.08,49.63571974]
[1751710260285,5.0488734,148.11,148.08,49.63571974]
[1751710260482,6.04393352,148.12,148.08,49.63571974]